[Event "Titled Tuesday Blitz July 11 Late 2023"]
[White "Andrews, Todd"]
[Black "Zubarev, Alexander"]
[WhiteFideId "2012456"]
[BlackFideId "14104385"]
[WhiteElo "2432"]
[BlackElo "2566"]
[Result "1-0"]
[Round "5"]
[TimeControl "180+2"]
[Date "2023.07.11"]
[WhiteClock "0:00:19"]
[BlackClock "0:00:00"]
[Board "85"]

1. e4 {[%clk 0:03:00]}  c5 {[%clk 0:02:57]} 2. Nf3 {[%clk 0:03:00]}  e6 {[%clk 0:02:58]} 3. d3 {[%clk 0:03:00]}  Nc6 {[%clk 0:02:57]} 4. g3 {[%clk 0:03:01]}  Nf6 {[%clk 0:02:58]} 5. Bg2 {[%clk 0:03:01]}  d5 {[%clk 0:02:59]} 6. Nbd2 {[%clk 0:03:02]}  Be7 {[%clk 0:02:59]} 7. O-O {[%clk 0:03:02]}  O-O {[%clk 0:02:59]} 8. Re1 {[%clk 0:03:03]}  b5 {[%clk 0:02:59]} 9. e5 {[%clk 0:03:01]}  Nd7 {[%clk 0:02:59]} 10. Nf1 {[%clk 0:03:02]}  b4 {[%clk 0:02:58]} 11. h4 {[%clk 0:03:00]}  Qc7 {[%clk 0:02:56]} 12. Bf4 {[%clk 0:03:00]}  a5 {[%clk 0:02:54]} 13. c3 {[%clk 0:02:56]}  Ba6 {[%clk 0:02:54]} 14. h5 {[%clk 0:02:51]}  a4 {[%clk 0:02:52]} 15. a3 {[%clk 0:02:51]}  bxc3 {[%clk 0:02:49]} 16. bxc3 {[%clk 0:02:52]}  Rab8 {[%clk 0:02:44]} 17. h6 {[%clk 0:02:51]}  g6 {[%clk 0:02:43]} 18. Qd2 {[%clk 0:02:45]}  Rb3 {[%clk 0:02:38]} 19. N1h2 {[%clk 0:02:20]}  Rfb8 {[%clk 0:02:28]} 20. Ng4 {[%clk 0:02:19]}  Rb2 {[%clk 0:02:11]} 21. Qe3 {[%clk 0:02:17]}  d4 {[%clk 0:01:59]} 22. cxd4 {[%clk 0:02:14]}  Nxd4 {[%clk 0:01:45]} 23. Nxd4 {[%clk 0:01:50]}  cxd4 {[%clk 0:01:45]} 24. Qxd4 {[%clk 0:01:51]}  Nc5 {[%clk 0:01:29]} 25. Rac1 {[%clk 0:01:31]}  Qb6 {[%clk 0:00:58]} 26. Nf6+ {[%clk 0:01:10]}  Kh8 {[%clk 0:00:57]} 27. Red1 {[%clk 0:00:44]}  Rd8 {[%clk 0:00:51]} 28. Qe3 {[%clk 0:00:37]}  Bxd3 {[%clk 0:00:09]} 29. Bg5 {[%clk 0:00:30]}  Re2 {[%clk 0:00:07]} 30. Qf4 {[%clk 0:00:26]}  Nb3 {[%clk 0:00:05]} 31. Rc3 {[%clk 0:00:20]}  Bc5 {[%clk 0:00:00]} 32. Ng4 {[%clk 0:00:19]} 1-0


[Site "https://www.chess.com"]

[Event "Titled Tuesday Blitz July 11 Late 2023"]
[White "Boldoo, Erdenepurev"]
[Black "Todev, Simeon"]
[WhiteFideId "4901037"]
[BlackFideId "2925133"]
[WhiteElo "2560"]
[BlackElo "2430"]
[Result "1-0"]
[Round "5"]
[TimeControl "180+2"]
[Date "2023.07.11"]
[WhiteClock "0:00:17"]
[BlackClock "0:00:31"]
[Board "87"]

1. d4 {[%clk 0:03:00]}  g6 {[%clk 0:02:45]} 2. Nc3 {[%clk 0:02:56]}  Bg7 {[%clk 0:02:34]} 3. Bf4 {[%clk 0:02:55]}  d6 {[%clk 0:02:34]} 4. h4 {[%clk 0:02:51]}  Nd7 {[%clk 0:02:35]} 5. h5 {[%clk 0:02:50]}  e5 {[%clk 0:02:31]} 6. h6 {[%clk 0:02:47]}  Bf6 {[%clk 0:02:31]} 7. dxe5 {[%clk 0:02:46]}  dxe5 {[%clk 0:02:32]} 8. Be3 {[%clk 0:02:33]}  Bg5 {[%clk 0:02:32]} 9. Bxg5 {[%clk 0:02:30]}  Qxg5 {[%clk 0:02:33]} 10. Nf3 {[%clk 0:02:31]}  Qe7 {[%clk 0:02:34]} 11. Nd5 {[%clk 0:02:31]}  Qd6 {[%clk 0:02:32]} 12. e4 {[%clk 0:02:29]}  Ngf6 {[%clk 0:02:32]} 13. Bc4 {[%clk 0:02:26]}  O-O {[%clk 0:02:24]} 14. Nxf6+ {[%clk 0:02:16]}  Nxf6 {[%clk 0:02:17]} 15. Qxd6 {[%clk 0:02:16]}  cxd6 {[%clk 0:02:18]} 16. Nd2 {[%clk 0:02:14]}  b5 {[%clk 0:02:12]} 17. Bxb5 {[%clk 0:02:09]}  Rb8 {[%clk 0:02:10]} 18. Bd3 {[%clk 0:02:08]}  Rxb2 {[%clk 0:02:09]} 19. Nb3 {[%clk 0:02:08]}  a5 {[%clk 0:02:00]} 20. Kd2 {[%clk 0:02:02]}  a4 {[%clk 0:02:00]} 21. Kc3 {[%clk 0:02:01]}  a3 {[%clk 0:02:00]} 22. Kb4 {[%clk 0:02:01]}  Ba6 {[%clk 0:01:39]} 23. Kxa3 {[%clk 0:01:40]}  Bxd3 {[%clk 0:01:39]} 24. Kxb2 {[%clk 0:01:40]}  Bxe4 {[%clk 0:01:39]} 25. f3 {[%clk 0:01:40]}  Bf5 {[%clk 0:01:40]} 26. a4 {[%clk 0:01:24]}  Rc8 {[%clk 0:01:40]} 27. Rhc1 {[%clk 0:01:18]}  Nd5 {[%clk 0:01:39]} 28. a5 {[%clk 0:01:18]}  Nb4 {[%clk 0:01:38]} 29. a6 {[%clk 0:01:19]}  Bxc2 {[%clk 0:01:32]} 30. a7 {[%clk 0:01:10]}  Nd3+ {[%clk 0:01:31]} 31. Ka3 {[%clk 0:01:10]}  Ra8 {[%clk 0:01:17]} 32. Rxc2 {[%clk 0:00:59]}  Rxa7+ {[%clk 0:01:18]} 33. Na5 {[%clk 0:00:59]}  Rxa5+ {[%clk 0:01:18]} 34. Kb3 {[%clk 0:01:00]}  Rb5+ {[%clk 0:00:48]} 35. Kc4 {[%clk 0:00:57]}  Rb8 {[%clk 0:00:39]} 36. Kxd3 {[%clk 0:00:57]}  f5 {[%clk 0:00:39]} 37. Ra7 {[%clk 0:00:51]}  d5 {[%clk 0:00:39]} 38. Rg7+ {[%clk 0:00:17]}  Kh8 {[%clk 0:00:38]} 39. Rgc7 {[%clk 0:00:16]}  Kg8 {[%clk 0:00:32]} 40. Rc8+ {[%clk 0:00:16]}  Rxc8 {[%clk 0:00:33]} 41. Rxc8+ {[%clk 0:00:17]}  Kf7 {[%clk 0:00:34]} 42. Rh8 {[%clk 0:00:17]}  Kf6 {[%clk 0:00:34]} 43. Rxh7 {[%clk 0:00:17]}  Kg5 {[%clk 0:00:35]} 44. Rh8 {[%clk 0:00:15]}  Kf4 {[%clk 0:00:35]} 45. h7 {[%clk 0:00:15]}  e4+ {[%clk 0:00:35]} 46. fxe4 {[%clk 0:00:16]}  fxe4+ {[%clk 0:00:35]} 47. Kd4 {[%clk 0:00:16]}  e3 {[%clk 0:00:31]} 48. Rf8+ {[%clk 0:00:17]} 1-0


[Site "https://www.chess.com"]

[Event "Titled Tuesday Blitz July 11 Late 2023"]
[White "only_strong_moves"]
[Black "Merino Garcia, Rafael II"]
[BlackFideId "2209128"]
[WhiteElo "2552"]
[BlackElo "2497"]
[Result "0-1"]
[Round "5"]
[TimeControl "180+2"]
[Date "2023.07.11"]
[WhiteClock "0:00:11"]
[BlackClock "0:00:05"]
[Board "91"]

1. d4 {[%clk 0:03:00]}  Nf6 {[%clk 0:02:16]} 2. Nc3 {[%clk 0:02:59]}  e6 {[%clk 0:02:16]} 3. Bf4 {[%clk 0:02:58]}  Bb4 {[%clk 0:02:10]} 4. Nf3 {[%clk 0:02:51]}  b6 {[%clk 0:02:02]} 5. a3 {[%clk 0:02:41]}  Bxc3+ {[%clk 0:02:01]} 6. bxc3 {[%clk 0:02:41]}  Bb7 {[%clk 0:02:01]} 7. g3 {[%clk 0:02:37]}  d6 {[%clk 0:01:53]} 8. Bg2 {[%clk 0:02:37]}  Nbd7 {[%clk 0:01:54]} 9. O-O {[%clk 0:02:37]}  Qe7 {[%clk 0:01:53]} 10. Bg5 {[%clk 0:02:31]}  h6 {[%clk 0:01:52]} 11. Bxf6 {[%clk 0:02:31]}  Nxf6 {[%clk 0:01:52]} 12. Nd2 {[%clk 0:02:27]}  Bxg2 {[%clk 0:01:51]} 13. Kxg2 {[%clk 0:02:28]}  c5 {[%clk 0:01:37]} 14. e4 {[%clk 0:02:28]}  e5 {[%clk 0:01:34]} 15. Qe2 {[%clk 0:02:25]}  O-O {[%clk 0:01:28]} 16. d5 {[%clk 0:02:23]}  Nd7 {[%clk 0:01:23]} 17. a4 {[%clk 0:02:22]}  f5 {[%clk 0:01:17]} 18. f3 {[%clk 0:02:16]}  a6 {[%clk 0:01:06]} 19. Rab1 {[%clk 0:02:14]}  Rab8 {[%clk 0:01:06]} 20. Nc4 {[%clk 0:02:12]}  h5 {[%clk 0:00:45]} 21. exf5 {[%clk 0:02:06]}  Rxf5 {[%clk 0:00:44]} 22. Ne3 {[%clk 0:02:07]}  Rf6 {[%clk 0:00:38]} 23. Qxa6 {[%clk 0:02:05]}  Rbf8 {[%clk 0:00:34]} 24. Qe2 {[%clk 0:01:57]}  h4 {[%clk 0:00:32]} 25. Ng4 {[%clk 0:01:25]}  Rg6 {[%clk 0:00:32]} 26. Qe4 {[%clk 0:01:22]}  Qf7 {[%clk 0:00:32]} 27. c4 {[%clk 0:01:11]}  Rg5 {[%clk 0:00:28]} 28. gxh4 {[%clk 0:01:04]}  Rf5 {[%clk 0:00:28]} 29. Ne3 {[%clk 0:01:04]}  Rf4 {[%clk 0:00:29]} 30. Qd3 {[%clk 0:01:03]}  Rxf3 {[%clk 0:00:28]} 31. Qe4 {[%clk 0:00:29]}  Rf2+ {[%clk 0:00:24]} 32. Kg1 {[%clk 0:00:22]}  Rf4 {[%clk 0:00:23]} 33. Qg2 {[%clk 0:00:19]}  Qh5 {[%clk 0:00:20]} 34. Rxf4 {[%clk 0:00:17]}  exf4 {[%clk 0:00:21]} 35. Ng4 {[%clk 0:00:16]}  f3 {[%clk 0:00:21]} 36. Qg3 {[%clk 0:00:17]}  Ne5 {[%clk 0:00:14]} 37. Nxe5 {[%clk 0:00:16]}  f2+ {[%clk 0:00:15]} 38. Kf1 {[%clk 0:00:15]}  dxe5 {[%clk 0:00:15]} 39. d6 {[%clk 0:00:14]}  Rf3 {[%clk 0:00:10]} 40. Qg5 {[%clk 0:00:12]}  Qe8 {[%clk 0:00:06]} 41. Rd1 {[%clk 0:00:11]}  Qe6 {[%clk 0:00:04]} 42. d7 {[%clk 0:00:03]}  Qxc4+ {[%clk 0:00:04]} 43. Rd3 {[%clk 0:00:03]}  Rxd3 {[%clk 0:00:03]} 44. cxd3 {[%clk 0:00:02]}  Qxd3+ {[%clk 0:00:04]} 45. Kxf2 {[%clk 0:00:03]}  Qxd7 {[%clk 0:00:04]} 46. Qxe5 {[%clk 0:00:03]}  Qf7+ {[%clk 0:00:04]} 47. Kg3 {[%clk 0:00:03]}  Qg6+ {[%clk 0:00:04]} 48. Kh3 {[%clk 0:00:03]}  Qf6 {[%clk 0:00:05]} 49. Qb8+ {[%clk 0:00:03]}  Kh7 {[%clk 0:00:05]} 50. Qg3 {[%clk 0:00:03]}  Qe6+ {[%clk 0:00:05]} 51. Kg2 {[%clk 0:00:03]}  Qg6 {[%clk 0:00:05]} 52. Kf3 {[%clk 0:00:04]}  Qxg3+ {[%clk 0:00:05]} 53. hxg3 {[%clk 0:00:04]}  Kg6 {[%clk 0:00:05]} 54. g4 {[%clk 0:00:05]}  Kf6 {[%clk 0:00:05]} 55. Ke4 {[%clk 0:00:06]}  Ke6 {[%clk 0:00:05]} 56. g5 {[%clk 0:00:06]}  Kf7 {[%clk 0:00:05]} 57. Kd5 {[%clk 0:00:05]}  Kg6 {[%clk 0:00:03]} 58. Kc6 {[%clk 0:00:05]}  c4 {[%clk 0:00:03]} 59. Kxb6 {[%clk 0:00:05]}  c3 {[%clk 0:00:03]} 60. a5 {[%clk 0:00:06]}  c2 {[%clk 0:00:04]} 61. a6 {[%clk 0:00:07]}  c1=Q {[%clk 0:00:05]} 62. a7 {[%clk 0:00:08]}  Qb2+ {[%clk 0:00:05]} 63. Kc7 {[%clk 0:00:09]}  Qa3 {[%clk 0:00:05]} 64. Kb8 {[%clk 0:00:09]}  Kh5 {[%clk 0:00:05]} 65. Ka8 {[%clk 0:00:10]}  Kxh4 {[%clk 0:00:04]} 66. Kb8 {[%clk 0:00:11]}  Kg4 {[%clk 0:00:05]} 67. Ka8 {[%clk 0:00:12]}  Kxg5 {[%clk 0:00:05]} 68. Kb8 {[%clk 0:00:13]}  Qxa7+ {[%clk 0:00:05]} 69. Kxa7 {[%clk 0:00:11]}  Kh4 {[%clk 0:00:05]} 0-1


[Site "https://www.chess.com"]

[Event "Titled Tuesday Blitz July 11 Late 2023"]
[White "Krzywda, Andrzej"]
[Black "Chen, Max"]
[WhiteFideId "1114565"]
[BlackFideId "2622440"]
[WhiteElo "2388"]
[BlackElo "2550"]
[Result "0-1"]
[Round "5"]
[TimeControl "180+2"]
[Date "2023.07.11"]
[WhiteClock "0:00:11"]
[BlackClock "0:00:22"]
[Board "92"]

1. e4 {[%clk 0:03:00]}  c6 {[%clk 0:02:58]} 2. d4 {[%clk 0:03:00]}  d5 {[%clk 0:02:59]} 3. e5 {[%clk 0:02:59]}  Bf5 {[%clk 0:02:59]} 4. h4 {[%clk 0:02:58]}  h5 {[%clk 0:02:59]} 5. Bd3 {[%clk 0:02:58]}  Bxd3 {[%clk 0:02:58]} 6. Qxd3 {[%clk 0:02:59]}  e6 {[%clk 0:02:58]} 7. Nf3 {[%clk 0:02:57]}  c5 {[%clk 0:02:58]} 8. c3 {[%clk 0:02:53]}  Nc6 {[%clk 0:02:57]} 9. O-O {[%clk 0:02:48]}  Nge7 {[%clk 0:02:57]} 10. Bg5 {[%clk 0:02:43]}  Qb6 {[%clk 0:02:56]} 11. dxc5 {[%clk 0:02:32]}  Qxc5 {[%clk 0:02:41]} 12. Nbd2 {[%clk 0:02:31]}  Ng6 {[%clk 0:02:35]} 13. b4 {[%clk 0:02:25]}  Qb6 {[%clk 0:02:22]} 14. Rfe1 {[%clk 0:02:23]}  Be7 {[%clk 0:02:21]} 15. a4 {[%clk 0:02:11]}  Bxg5 {[%clk 0:02:20]} 16. hxg5 {[%clk 0:02:08]}  Qc7 {[%clk 0:02:18]} 17. Qe3 {[%clk 0:02:01]}  Nce7 {[%clk 0:02:14]} 18. Rac1 {[%clk 0:01:53]}  Nf5 {[%clk 0:02:13]} 19. Qd3 {[%clk 0:01:50]}  a6 {[%clk 0:02:12]} 20. c4 {[%clk 0:01:49]}  Nf4 {[%clk 0:02:06]} 21. Qb3 {[%clk 0:01:38]}  d4 {[%clk 0:02:04]} 22. Ne4 {[%clk 0:01:30]}  Rd8 {[%clk 0:02:03]} 23. c5 {[%clk 0:01:30]}  O-O {[%clk 0:01:58]} 24. Nd6 {[%clk 0:01:30]}  d3 {[%clk 0:01:55]} 25. Rcd1 {[%clk 0:01:21]}  b6 {[%clk 0:01:47]} 26. Qc4 {[%clk 0:01:20]}  Ne2+ {[%clk 0:01:36]} 27. Kf1 {[%clk 0:01:19]}  Nxd6 {[%clk 0:01:36]} 28. exd6 {[%clk 0:01:16]}  Rxd6 {[%clk 0:01:36]} 29. Rxd3 {[%clk 0:01:12]}  Rxd3 {[%clk 0:01:36]} 30. Qxd3 {[%clk 0:01:13]}  Nf4 {[%clk 0:01:36]} 31. Qe4 {[%clk 0:00:59]}  bxc5 {[%clk 0:01:35]} 32. bxc5 {[%clk 0:00:58]}  Rb8 {[%clk 0:01:30]} 33. Kg1 {[%clk 0:00:58]}  Nd5 {[%clk 0:01:27]} 34. g6 {[%clk 0:00:53]}  Rb4 {[%clk 0:01:15]} 35. gxf7+ {[%clk 0:00:50]}  Qxf7 {[%clk 0:01:16]} 36. Qxe6 {[%clk 0:00:43]}  Qxe6 {[%clk 0:01:16]} 37. Rxe6 {[%clk 0:00:44]}  Rxa4 {[%clk 0:01:17]} 38. Rd6 {[%clk 0:00:36]}  Nb4 {[%clk 0:01:10]} 39. c6 {[%clk 0:00:34]}  Ra1+ {[%clk 0:01:10]} 40. Kh2 {[%clk 0:00:34]}  Rc1 {[%clk 0:01:11]} 41. Ne5 {[%clk 0:00:33]}  a5 {[%clk 0:01:11]} 42. f4 {[%clk 0:00:27]}  a4 {[%clk 0:00:58]} 43. f5 {[%clk 0:00:26]}  Kh7 {[%clk 0:00:54]} 44. Rd8 {[%clk 0:00:20]}  Rc5 {[%clk 0:00:51]} 45. Nf7 {[%clk 0:00:15]}  g6 {[%clk 0:00:42]} 46. Ng5+ {[%clk 0:00:15]}  Kh6 {[%clk 0:00:41]} 47. Nf7+ {[%clk 0:00:13]}  Kg7 {[%clk 0:00:40]} 48. Rd7 {[%clk 0:00:13]}  Nxc6 {[%clk 0:00:33]} 49. Ne5+ {[%clk 0:00:10]}  Kf6 {[%clk 0:00:33]} 50. fxg6 {[%clk 0:00:09]}  Nxe5 {[%clk 0:00:29]} 51. g7 {[%clk 0:00:09]}  Rc8 {[%clk 0:00:29]} 52. Ra7 {[%clk 0:00:07]}  Kg5 {[%clk 0:00:26]} 53. Ra5 {[%clk 0:00:05]}  Kf5 {[%clk 0:00:24]} 54. Rc5 {[%clk 0:00:04]}  Rg8 {[%clk 0:00:23]} 55. Rc7 {[%clk 0:00:04]}  Kf6 {[%clk 0:00:19]} 56. Ra7 {[%clk 0:00:05]}  Rxg7 {[%clk 0:00:20]} 57. Rxa4 {[%clk 0:00:05]}  Kf5 {[%clk 0:00:20]} 58. Kh3 {[%clk 0:00:05]}  Rg4 {[%clk 0:00:15]} 59. Ra8 {[%clk 0:00:06]}  Rb4 {[%clk 0:00:13]} 60. Rf8+ {[%clk 0:00:06]}  Kg5 {[%clk 0:00:14]} 61. Rg8+ {[%clk 0:00:06]}  Ng6 {[%clk 0:00:14]} 62. Rg7 {[%clk 0:00:05]}  Rb3+ {[%clk 0:00:15]} 63. Kh2 {[%clk 0:00:06]}  Kf5 {[%clk 0:00:14]} 64. Ra7 {[%clk 0:00:06]}  Nf4 {[%clk 0:00:14]} 65. Ra5+ {[%clk 0:00:06]}  Kg4 {[%clk 0:00:14]} 66. Ra2 {[%clk 0:00:06]}  Re3 {[%clk 0:00:13]} 67. Rb2 {[%clk 0:00:05]}  Re2 {[%clk 0:00:14]} 68. Rb8 {[%clk 0:00:05]}  Rxg2+ {[%clk 0:00:14]} 69. Kh1 {[%clk 0:00:06]}  Rc2 {[%clk 0:00:13]} 70. Rb1 {[%clk 0:00:05]}  h4 {[%clk 0:00:12]} 71. Rg1+ {[%clk 0:00:05]}  Kh3 {[%clk 0:00:12]} 72. Ra1 {[%clk 0:00:04]}  Rh2+ {[%clk 0:00:12]} 73. Kg1 {[%clk 0:00:04]}  Ne2+ {[%clk 0:00:13]} 74. Kf1 {[%clk 0:00:05]}  Rh1+ {[%clk 0:00:14]} 75. Kxe2 {[%clk 0:00:05]}  Rxa1 {[%clk 0:00:14]} 76. Kf2 {[%clk 0:00:05]}  Kh2 {[%clk 0:00:15]} 77. Kf3 {[%clk 0:00:05]}  h3 {[%clk 0:00:15]} 78. Kg4 {[%clk 0:00:06]}  Kg2 {[%clk 0:00:15]} 79. Kf4 {[%clk 0:00:06]}  h2 {[%clk 0:00:16]} 80. Ke3 {[%clk 0:00:07]}  h1=Q {[%clk 0:00:17]} 81. Kd2 {[%clk 0:00:07]}  Qb1 {[%clk 0:00:17]} 82. Kc3 {[%clk 0:00:07]}  Qb2+ {[%clk 0:00:18]} 83. Kc4 {[%clk 0:00:07]}  Rc1+ {[%clk 0:00:18]} 84. Kd5 {[%clk 0:00:08]}  Rc3 {[%clk 0:00:18]} 85. Ke4 {[%clk 0:00:09]}  Qb4+ {[%clk 0:00:18]} 86. Kf5 {[%clk 0:00:10]}  Rc5+ {[%clk 0:00:19]} 87. Kg6 {[%clk 0:00:10]}  Qb6+ {[%clk 0:00:20]} 88. Kf7 {[%clk 0:00:11]}  Rc7+ {[%clk 0:00:21]} 89. Kg8 {[%clk 0:00:11]}  Qb8# {[%clk 0:00:22]} 0-1


[Site "https://www.chess.com"]

[Event "Titled Tuesday Blitz July 11 Late 2023"]
[White "GAO"]
[Black "Aggelis, Nikolaos"]
[BlackFideId "4213220"]
[WhiteElo "2385"]
[BlackElo "2539"]
[Result "1/2-1/2"]
[Round "5"]
[TimeControl "180+2"]
[Date "2023.07.11"]
[WhiteClock "0:00:13"]
[BlackClock "0:00:28"]
[Board "94"]

1. e4 {[%clk 0:03:00]}  c6 {[%clk 0:02:50]} 2. Nf3 {[%clk 0:02:57]}  d5 {[%clk 0:02:50]} 3. exd5 {[%clk 0:02:55]}  cxd5 {[%clk 0:02:51]} 4. Ne5 {[%clk 0:02:55]}  Nd7 {[%clk 0:02:50]} 5. d4 {[%clk 0:02:54]}  Ngf6 {[%clk 0:02:45]} 6. Bd3 {[%clk 0:02:53]}  g6 {[%clk 0:02:40]} 7. O-O {[%clk 0:02:53]}  Bg7 {[%clk 0:02:41]} 8. Qe2 {[%clk 0:02:52]}  O-O {[%clk 0:02:41]} 9. c3 {[%clk 0:02:52]}  a6 {[%clk 0:02:38]} 10. Nd2 {[%clk 0:02:51]}  Ne8 {[%clk 0:02:31]} 11. Ndf3 {[%clk 0:02:46]}  Nd6 {[%clk 0:02:30]} 12. Re1 {[%clk 0:02:46]}  Nf6 {[%clk 0:02:24]} 13. Bg5 {[%clk 0:02:30]}  h6 {[%clk 0:02:17]} 14. Bh4 {[%clk 0:02:27]}  Nf5 {[%clk 0:02:16]} 15. Bxf6 {[%clk 0:02:17]}  exf6 {[%clk 0:02:15]} 16. Ng4 {[%clk 0:02:15]}  h5 {[%clk 0:02:09]} 17. Ne3 {[%clk 0:02:14]}  Re8 {[%clk 0:02:07]} 18. Qd2 {[%clk 0:01:43]}  Bh6 {[%clk 0:02:07]} 19. Bxf5 {[%clk 0:01:41]}  Bxf5 {[%clk 0:02:06]} 20. Qd1 {[%clk 0:01:35]}  Bxe3 {[%clk 0:01:40]} 21. Rxe3 {[%clk 0:01:31]}  Rxe3 {[%clk 0:01:39]} 22. fxe3 {[%clk 0:01:32]}  Qe7 {[%clk 0:01:38]} 23. Qd2 {[%clk 0:01:30]}  Re8 {[%clk 0:01:39]} 24. Kf2 {[%clk 0:01:31]}  Be4 {[%clk 0:01:36]} 25. Qe2 {[%clk 0:01:26]}  Qc7 {[%clk 0:01:32]} 26. Kg1 {[%clk 0:01:22]}  Kg7 {[%clk 0:01:32]} 27. Rf1 {[%clk 0:01:20]}  b5 {[%clk 0:01:28]} 28. Nd2 {[%clk 0:01:20]}  f5 {[%clk 0:01:20]} 29. Nb3 {[%clk 0:01:15]}  Qc4 {[%clk 0:01:13]} 30. Qxc4 {[%clk 0:01:01]}  bxc4 {[%clk 0:01:14]} 31. Nc5 {[%clk 0:01:01]}  Rb8 {[%clk 0:01:13]} 32. Rf2 {[%clk 0:01:00]}  a5 {[%clk 0:01:13]} 33. Kf1 {[%clk 0:00:57]}  Rb5 {[%clk 0:01:03]} 34. Ke1 {[%clk 0:00:51]}  Rb8 {[%clk 0:00:58]} 35. g3 {[%clk 0:00:49]}  h4 {[%clk 0:00:55]} 36. gxh4 {[%clk 0:00:46]}  Rh8 {[%clk 0:00:52]} 37. Rf4 {[%clk 0:00:46]}  g5 {[%clk 0:00:45]} 38. hxg5 {[%clk 0:00:45]}  Rxh2 {[%clk 0:00:46]} 39. Nxe4 {[%clk 0:00:43]}  fxe4 {[%clk 0:00:43]} 40. Rf2 {[%clk 0:00:43]}  Rh1+ {[%clk 0:00:43]} 41. Kd2 {[%clk 0:00:41]}  Kg6 {[%clk 0:00:32]} 42. Rf6+ {[%clk 0:00:31]}  Kg7 {[%clk 0:00:29]} 43. Rf5 {[%clk 0:00:30]}  Rh2+ {[%clk 0:00:27]} 44. Kc1 {[%clk 0:00:23]}  Rh1+ {[%clk 0:00:28]} 45. Kc2 {[%clk 0:00:23]}  Rh2+ {[%clk 0:00:28]} 46. Kc1 {[%clk 0:00:23]}  Rh1+ {[%clk 0:00:29]} 47. Kc2 {[%clk 0:00:13]}  Rh2+ {[%clk 0:00:28]} 48. Kc1 {[%clk 0:00:13]} 1/2-1/2


[Site "https://www.chess.com"]

[Event "Titled Tuesday Blitz July 11 Late 2023"]
[White "Daianu, Cristian-Clement"]
[Black "Francisco Guecamburu, Candela Be"]
[WhiteFideId "1208926"]
[BlackFideId "160911"]
[WhiteElo "2375"]
[BlackElo "2528"]
[Result "0-1"]
[Round "5"]
[TimeControl "180+2"]
[Date "2023.07.11"]
[WhiteClock "0:02:24"]
[BlackClock "0:01:37"]
[Board "98"]

1. e4 {[%clk 0:02:51]}  c5 {[%clk 0:02:59]} 2. Nf3 {[%clk 0:02:50]}  g6 {[%clk 0:03:00]} 3. d4 {[%clk 0:02:51]}  cxd4 {[%clk 0:03:01]} 4. Nxd4 {[%clk 0:02:51]}  Bg7 {[%clk 0:03:01]} 5. Nc3 {[%clk 0:02:51]}  Nc6 {[%clk 0:03:02]} 6. Be3 {[%clk 0:02:50]}  Nf6 {[%clk 0:03:02]} 7. Nxc6 {[%clk 0:02:50]}  bxc6 {[%clk 0:03:02]} 8. e5 {[%clk 0:02:51]}  Ng8 {[%clk 0:03:02]} 9. Bd4 {[%clk 0:02:43]}  Nh6 {[%clk 0:03:01]} 10. Qd2 {[%clk 0:02:40]}  Nf5 {[%clk 0:02:54]} 11. O-O-O {[%clk 0:02:39]}  O-O {[%clk 0:02:45]} 12. f4 {[%clk 0:02:39]}  Nxd4 {[%clk 0:02:39]} 13. Qxd4 {[%clk 0:02:39]}  Qa5 {[%clk 0:02:36]} 14. Bc4 {[%clk 0:02:37]}  d6 {[%clk 0:02:20]} 15. Rhe1 {[%clk 0:02:35]}  Bg4 {[%clk 0:02:18]} 16. Rd2 {[%clk 0:02:33]}  Rad8 {[%clk 0:01:38]} 17. e6 {[%clk 0:02:24]}  Bxd4 {[%clk 0:01:37]} 0-1


[Site "https://www.chess.com"]

[Event "Titled Tuesday Blitz July 11 Late 2023"]
[White "ArchibaldCerveza29"]
[Black "StarkyNZ"]
[WhiteElo "2518"]
[BlackElo "2294"]
[Result "1-0"]
[Round "5"]
[TimeControl "180+2"]
[Date "2023.07.11"]
[WhiteClock "0:00:26"]
[BlackClock "0:01:11"]
[Board "103"]

1. e4 {[%clk 0:03:00]}  e6 {[%clk 0:02:58]} 2. d4 {[%clk 0:02:59]}  d5 {[%clk 0:02:58]} 3. Nd2 {[%clk 0:02:58]}  dxe4 {[%clk 0:02:58]} 4. Nxe4 {[%clk 0:02:58]}  Bd7 {[%clk 0:02:59]} 5. Nf3 {[%clk 0:02:55]}  Bc6 {[%clk 0:02:59]} 6. Bd3 {[%clk 0:02:55]}  Nd7 {[%clk 0:02:58]} 7. O-O {[%clk 0:02:55]}  Ngf6 {[%clk 0:02:59]} 8. Ned2 {[%clk 0:02:55]}  b6 {[%clk 0:02:56]} 9. Re1 {[%clk 0:02:41]}  Be7 {[%clk 0:02:56]} 10. c3 {[%clk 0:02:41]}  O-O {[%clk 0:02:52]} 11. Qe2 {[%clk 0:02:40]}  Bb7 {[%clk 0:02:50]} 12. Nf1 {[%clk 0:02:35]}  c5 {[%clk 0:02:49]} 13. Ng3 {[%clk 0:02:24]}  Rc8 {[%clk 0:02:37]} 14. Bg5 {[%clk 0:02:06]}  cxd4 {[%clk 0:02:35]} 15. Nxd4 {[%clk 0:02:06]}  Nc5 {[%clk 0:02:33]} 16. Bc2 {[%clk 0:02:06]}  h6 {[%clk 0:02:22]} 17. Bf4 {[%clk 0:02:01]}  Nd5 {[%clk 0:02:21]} 18. Bd2 {[%clk 0:01:59]}  Bf6 {[%clk 0:02:18]} 19. Rad1 {[%clk 0:01:59]}  Qc7 {[%clk 0:02:07]} 20. Qg4 {[%clk 0:01:47]}  Kh8 {[%clk 0:01:59]} 21. Nh5 {[%clk 0:00:51]}  Nd7 {[%clk 0:01:53]} 22. Bxh6 {[%clk 0:00:34]}  gxh6 {[%clk 0:01:46]} 23. Qe4 {[%clk 0:00:33]}  Qxh2+ {[%clk 0:01:21]} 24. Kxh2 {[%clk 0:00:34]}  Be5+ {[%clk 0:01:21]} 25. Kh1 {[%clk 0:00:33]}  N5f6 {[%clk 0:01:21]} 26. Nxf6 {[%clk 0:00:32]}  Bxe4 {[%clk 0:01:20]} 27. Nxd7 {[%clk 0:00:23]}  Bxc2 {[%clk 0:01:20]} 28. Nxc2 {[%clk 0:00:20]}  Bg7 {[%clk 0:01:15]} 29. Nxf8 {[%clk 0:00:20]}  Rxf8 {[%clk 0:01:16]} 30. Rd7 {[%clk 0:00:21]}  a5 {[%clk 0:01:13]} 31. Red1 {[%clk 0:00:21]}  Kh7 {[%clk 0:01:12]} 32. Ne3 {[%clk 0:00:21]}  Rc8 {[%clk 0:01:12]} 33. Rb7 {[%clk 0:00:20]}  Kg6 {[%clk 0:01:09]} 34. Rxb6 {[%clk 0:00:20]}  h5 {[%clk 0:01:08]} 35. Rb5 {[%clk 0:00:20]}  h4 {[%clk 0:01:08]} 36. Rxa5 {[%clk 0:00:20]}  h3 {[%clk 0:01:09]} 37. gxh3 {[%clk 0:00:19]}  Rh8 {[%clk 0:01:06]} 38. Kg2 {[%clk 0:00:20]}  Bf8 {[%clk 0:01:05]} 39. Ra8 {[%clk 0:00:18]}  Rg8 {[%clk 0:01:04]} 40. Rdd8 {[%clk 0:00:18]}  Kf6+ {[%clk 0:01:03]} 41. Kf3 {[%clk 0:00:18]}  Rh8 {[%clk 0:01:03]} 42. Rxf8 {[%clk 0:00:18]}  Rxh3+ {[%clk 0:01:03]} 43. Kg2 {[%clk 0:00:18]}  Rh5 {[%clk 0:01:04]} 44. Ra7 {[%clk 0:00:19]}  Rh7 {[%clk 0:01:03]} 45. Rfxf7+ {[%clk 0:00:18]}  Rxf7 {[%clk 0:01:03]} 46. Rxf7+ {[%clk 0:00:19]}  Kxf7 {[%clk 0:01:04]} 47. a4 {[%clk 0:00:20]}  Ke7 {[%clk 0:01:05]} 48. a5 {[%clk 0:00:21]}  Kd6 {[%clk 0:01:06]} 49. a6 {[%clk 0:00:22]}  Kc7 {[%clk 0:01:07]} 50. f4 {[%clk 0:00:22]}  Kb6 {[%clk 0:01:08]} 51. f5 {[%clk 0:00:21]}  exf5 {[%clk 0:01:08]} 52. Nxf5 {[%clk 0:00:22]}  Kxa6 {[%clk 0:01:08]} 53. Kf3 {[%clk 0:00:23]}  Kb5 {[%clk 0:01:09]} 54. Ke4 {[%clk 0:00:24]}  Kc4 {[%clk 0:01:10]} 55. Nd4 {[%clk 0:00:24]}  Kc5 {[%clk 0:01:10]} 56. b4+ {[%clk 0:00:25]}  Kc4 {[%clk 0:01:11]} 57. Ke3 {[%clk 0:00:24]}  Kxc3 {[%clk 0:01:09]} 58. b5 {[%clk 0:00:24]}  Kc4 {[%clk 0:01:09]} 59. b6 {[%clk 0:00:25]}  Kc3 {[%clk 0:01:10]} 60. b7 {[%clk 0:00:26]}  Kc4 {[%clk 0:01:10]} 61. b8=Q {[%clk 0:00:26]}  Kc3 {[%clk 0:01:11]} 62. Qb3# {[%clk 0:00:26]} 1-0


[Site "https://www.chess.com"]